[Event "ESTCC U65 2018"]
[Site "Walbrzych"]
[Date "2018.04.17"]
[Round "4"]
[White "Fernengel, Rudolf"]
[Black "Meskanen, Vesa"]
[Result "1/2-1/2"]
[ECO "D86"]
[WhiteElo "1789"]
[BlackElo "2066"]
[Annotator "NA"]
[PlyCount "116"]
[EventDate "2018.??.??"]
[EventCountry "POL"]
[SourceTitle "playchess.com"]
[Source "ChessBase"]
[SourceQuality "1"]
[WhiteTeam "Germany"]
[BlackTeam "Finland"]
[WhiteTeamCountry "GER"]
[BlackTeamCountry "FIN"]
[TimeControl "40/5400+30:1800+30"]

1. d4 {[%emt 0:00:00]} Nf6 {[%emt 0:00:12]} 2. c4 {[%emt 0:00:00]} g6 {[%emt 0:00:08]} 3. Nc3 {[%emt 0:00:00]} d5 {[%emt 0:00:09]} 4. cxd5 {[%emt 0:00:19]} Nxd5 {[%emt 0:03:29]} 5. e4 {[%emt 0:00:12]} Nxc3 {[%emt 0:00:14]} 6. bxc3 {[%emt 0:00:09]} Bg7 {[%emt 0:00:02]} 7. Bc4 {[%emt 0:02:44]} c5 {[%emt 0:00:26]} 8. Ne2 {[%emt 0:01:23]} O-O {[%emt 0:00:33]} 9. O-O $11 {[%emt 0:01:08]} Nc6 {[%emt 0:00:14]} 10. Be3 {[%emt 0:00:31]} Bg4 {[%emt 0:00:43]} 11. f3 {[%emt 0:00:42]} cxd4 {[%emt 0:00:52]} 12. cxd4 {[%emt 0:01:03]} Na5 {[%emt 0:00:34]} 13. Bxf7+ {[%emt 0:02:29]} Rxf7 {[%emt 0:01:06]} 14. fxg4 {[%emt 0:00:07]} Rxf1+ {[%emt 0:00:14]} 15. Kxf1 {[%emt 0:00:37]} Qd7 {[%emt 0:05:09]} 16. h3 {[%emt 0:03:42]} Rd8 {[%emt 0:06:24]} 17. Rc1 {[%emt 0:08:44]} b5 {[%emt 0:05:15]} 18. g5 {[%emt 0:08:12]} Nc4 {[%emt 0:08:37]} 19. Bf2 {[%emt 0:01:01]} h6 {[%emt 0:15:20]} 20. a4 {[%emt 0:30:05]} hxg5 {[%emt 0:04:28]} 21. axb5 {[%emt 0:01:12]} Qxb5 {[%emt 0:00:16]} 22. Kg1 {[%emt 0:03:21]} Nd6 {[%emt 0:10:05]} 23. e5 {[%emt 0:02:25]} Nf5 {[%emt 0:02:46]} 24. Qc2 {[%emt 0:02:20]} e6 {[%emt 0:03:38]} 25. g4 {[%emt 0:04:30]} Ne7 {[%emt 0:01:09]} 26. Qc7 {[%emt 0:03:23]} Rd7 27. Qc4 {[%emt 0:01:54]} Qxc4 {[%emt 0:06:57]} 28. Rxc4 {[%emt 0:00:02]} Nd5 {[%emt 0:00:40]} 29. Ng3 {[%emt 0:04:24]} Bf8 {[%emt 0:01:24]} 30. Ne4 {[%emt 0:00:54]} Be7 {[%emt 0:01:01]} 31. Kg2 {[%emt 0:04:36]} Rc7 {[%emt 0:05:23]} 32. Rxc7 {[%emt 0:03:06]} Nxc7 {[%emt 0:00:01]} 33. Be3 {[%emt 0:01:30]} Nb5 {[%emt 0:03:03]} 34. Nc5 {[%emt 0:01:46]} Kf7 {[%emt 0:00:32]} 35. Kf3 {[%emt 0:00:28]} Nc3 {[%emt 0:04:08]} 36. Bd2 {[%emt 0:02:35]} Bxc5 {[%emt 0:03:28]} 37. dxc5 {[%emt 0:03:04]} Nb5 {[%emt 0:01:30]} 38. Ke4 {[%emt 0:00:50]} Nc7 {[%emt 0:02:57]} 39. Bxg5 {[%emt 0:02:17]} a5 {[%emt 0:00:21]} 40. Bd8 {[%emt 0:00:00]} Na6 {[%emt 0:00:28]} 41. Kd4 {[%emt 0:03:46]} a4 {[%emt 0:03:32]} 42. Bb6 {[%emt 0:05:00]} a3 {[%emt 0:03:14]} 43. Kc3 {[%emt 0:00:30]} Nb4 {[%emt 0:01:52]} 44. Kb3 {[%emt 0:04:06]} a2 {[%emt 0:01:06]} 45. Kb2 {[%emt 0:00:12]} g5 {[%emt 0:01:18]} 46. Ka1 {[%emt 0:00:55]} Ke8 {[%emt 0:02:39]} 47. Ba5 {[%emt 0:02:41]} Nd3 {[%emt 0:00:27]} 48. Kxa2 {[%emt 0:01:50]} Nxc5 {[%emt 0:01:46]} 49. Bd2 {[%emt 0:01:15]} Nd3 {[%emt 0:02:24]} 50. Bxg5 {[%emt 0:00:37]} Nf2 {[%emt 0:00:50]} 51. Bf6 {[%emt 0:00:56]} Nxh3 {[%emt 0:00:12]} 52. Kb3 {[%emt 0:00:16]} Nf2 {[%emt 0:00:45]} 53. g5 {[%emt 0:00:04]} Kf7 {[%emt 0:00:07]} 54. Kc4 {[%emt 0:00:16]} Kg6 {[%emt 0:00:11]} 55. Kc5 {[%emt 0:00:08]} Kf5 {[%emt 0:00:03]} 56. Kd6 {[%emt 0:00:08]} Ng4 {[%emt 0:01:19]} 57. Ke7 {[%emt 0:01:39]} Nxe5 {[%emt 0:00:17]} 58. Bxe5 {[%emt 0:00:10]} Kxg5 1/2-1/2

[Event "ESTCC U65 2018"]
[Site "Walbrzych"]
[Date "2018.04.17"]
[Round "4"]
[White "Andersson, Finn"]
[Black "Rintakoski, Pentti"]
[Result "1/2-1/2"]
[ECO "B33"]
[WhiteElo "1719"]
[BlackElo "1797"]
[Annotator "NA"]
[PlyCount "44"]
[EventDate "2018.??.??"]
[EventCountry "POL"]
[SourceTitle "playchess.com"]
[Source "ChessBase"]
[SourceQuality "1"]
[WhiteTeam "Denmark"]
[BlackTeam "Finland"]
[WhiteTeamCountry "DEN"]
[BlackTeamCountry "FIN"]
[TimeControl "40/5400+30:1800+30"]

1. e4 {[%emt 0:00:00]} c5 {[%emt 0:00:15]} 2. Nf3 {[%emt 0:00:00]} Nc6 {[%emt 0:00:17]} 3. d4 {[%emt 0:00:00]} cxd4 {[%emt 0:00:11]} 4. Nxd4 {[%emt 0:00:00]} Nf6 {[%emt 0:00:13]} 5. Nc3 {[%emt 0:00:09]} e6 {[%emt 0:00:42]} 6. a3 {[%emt 0:03:43]} a6 {[%emt 0:00:31]} 7. Nxc6 {[%emt 0:09:26]} bxc6 {[%emt 0:00:26]} 8. Be2 {[%emt 0:03:02]} Be7 {[%emt 0:00:18]} 9. O-O {[%emt 0:00:14]} O-O {[%emt 0:00:31]} 10. e5 {[%emt 0:07:08]} Nd5 {[%emt 0:00:39]} 11. Ne4 {[%emt 0:03:42]} Qc7 {[%emt 0:01:54]} 12. c4 {[%emt 0:00:51]} Nb6 {[%emt 0:00:48]} 13. Bf4 {[%emt 0:16:58]} Bb7 {[%emt 0:04:31]} 14. Bd3 {[%emt 0:09:11]} c5 {[%emt 0:01:18]} 15. Qc2 {[%emt 0:14:50]} h6 {[%emt 0:01:34]} 16. Bg3 {[%emt 0:06:31]} Qc6 {[%emt 0:01:06]} 17. f4 {[%emt 0:02:34]} Rad8 {[%emt 0:01:51]} 18. Rae1 {[%emt 0:00:39]} d6 {[%emt 0:00:28]} 19. exd6 {[%emt 0:04:42]} Bxd6 {[%emt 0:00:22]} 20. Re3 {[%emt 0:00:39]} Be7 {[%emt 0:01:00]} 21. f5 {[%emt 0:01:40]} Nd7 {[%emt 0:02:11]} 22. fxe6 {[%emt 0:02:42]} fxe6 {[%emt 0:00:36]} 1/2-1/2

[Event "ESTCC U65 2018"]
[Site "Walbrzych"]
[Date "2018.04.18"]
[Round "5"]
[White "Buchal, Stephan"]
[Black "Kolbak, Jens"]
[Result "1-0"]
[ECO "A15"]
[WhiteElo "2310"]
[BlackElo "2213"]
[Annotator "NA"]
[PlyCount "93"]
[EventDate "2018.??.??"]
[EventCountry "POL"]
[SourceTitle "playchess.com"]
[Source "ChessBase"]
[SourceQuality "1"]
[WhiteTeam "Germany"]
[BlackTeam "Denmark"]
[WhiteTeamCountry "GER"]
[BlackTeamCountry "DEN"]
[TimeControl "40/5400+30:1800+30"]

1. c4 {[%emt 0:00:00]} Nf6 {[%emt 0:00:32]} 2. g3 {[%emt 0:00:47]} g6 {[%emt 0:01:36]} 3. Bg2 {[%emt 0:00:59]} Bg7 {[%emt 0:00:06]} 4. Nc3 {[%emt 0:00:18]} c5 {[%emt 0:02:54]} 5. Nf3 {[%emt 0:01:48]} O-O {[%emt 0:00:27]} 6. O-O {[%emt 0:01:19] LiveBook: 1023 Games} d5 {[%emt 0:06:30]} 7. cxd5 {[%emt 0:01:20]} Nxd5 {[%emt 0:00:05]} 8. Nxd5 {[%emt 0:01:38]} Qxd5 {[%emt 0:00:07]} 9. d3 {[%emt 0:00:11]} Nc6 {[%emt 0:01:38]} 10. Be3 {[%emt 0:02:10]} Qd6 {[%emt 0:09:08]} 11. Rc1 {[%emt 0:07:56]} Nd4 {[%emt 0:08:30]} 12. Nxd4 {[%emt 0:24:51]} cxd4 {[%emt 0:01:01]} 13. Bd2 {[%emt 0:00:20]} Bg4 {[%emt 0:09:19]} 14. Qb3 {[%emt 0:05:56]} Rab8 {[%emt 0:02:08]} 15. Rc2 {[%emt 0:04:50]} Qa6 $14 {[%emt 0:04:00]} 16. Bb4 {[%emt 0:07:55]} Rfe8 {[%emt 0:11:35]} 17. Rfc1 {[%emt 0:08:32]} Bh6 {[%emt 0:05:09]} 18. Re1 {[%emt 0:04:22]} Bd7 {[%emt 0:07:55]} 19. Rc7 {[%emt 0:07:39]} Be6 {[%emt 0:03:49]} 20. Bd5 {[%emt 0:02:06]} Bxd5 {[%emt 0:01:56]} 21. Qxd5 {[%emt 0:00:04]} Red8 {[%emt 0:02:46]} 22. Qb3 {[%emt 0:07:23]} e6 {[%emt 0:01:10]} 23. f4 {[%emt 0:00:40]} Qb5 {[%emt 0:03:10]} 24. Rc5 {[%emt 0:01:58]} Qd7 {[%emt 0:06:16]} 25. Rec1 {[%emt 0:01:33]} Rbc8 {[%emt 0:00:25]} 26. Rxc8 {[%emt 0:01:37]} Rxc8 {[%emt 0:00:04]} 27. Rxc8+ {[%emt 0:00:37]} Qxc8 {[%emt 0:00:05]} 28. Qc4 {[%emt 0:00:32]} Qd7 {[%emt 0:00:41]} 29. Bc5 {[%emt 0:00:49]} Bg7 {[%emt 0:00:23]} 30. Bxa7 {[%emt 0:00:43]} e5 {[%emt 0:00:05]} 31. Bb8 {[%emt 0:00:44]} exf4 {[%emt 0:01:24]} 32. Bxf4 {[%emt 0:00:03]} h6 {[%emt 0:00:30]} 33. a4 {[%emt 0:00:59]} g5 {[%emt 0:01:10]} 34. Bc1 {[%emt 0:01:27]} Qg4 {[%emt 0:01:01]} 35. Qc2 {[%emt 0:01:04]} Be5 {[%emt 0:01:39]} 36. Qd1 {[%emt 0:01:12]} f5 {[%emt 0:04:05]} 37. Qb3+ {[%emt 0:00:42]} Kh8 {[%emt 0:00:32]} 38. Qe6 {[%emt 0:00:57]} Qxe2 {[%emt 0:00:53]} 39. Qxh6+ {[%emt 0:00:34]} Kg8 {[%emt 0:00:08]} 40. Qxg5+ {[%emt 0:00:00]} Bg7 {[%emt 0:00:48]} 41. Qd2 {[%emt 0:01:24]} Qf3 {[%emt 0:00:58]} 42. Qc2 {[%emt 0:01:47]} Be5 {[%emt 0:05:34]} 43. b4 {[%emt 0:05:26]} Kf7 {[%emt 0:00:38]} 44. a5 {[%emt 0:01:39]} Bxg3 {[%emt 0:11:02]} 45. Qc4+ {[%emt 0:01:11]} Kf6 {[%emt 0:03:50]} 46. hxg3 {[%emt 0:00:32]} Qxg3+ {[%emt 0:00:13]} 47. Kf1 {[%emt 0:00:09]} 1-0

[Event "ESTCC U65 2018"]
[Site "Walbrzych"]
[Date "2018.04.18"]
[Round "5"]
[White "Kierzek, Matthias"]
[Black "Mortensen, Steen Juul"]
[Result "1-0"]
[ECO "E73"]
[WhiteElo "2272"]
[BlackElo "1940"]
[Annotator "NA"]
[PlyCount "91"]
[EventDate "2018.??.??"]
[EventCountry "POL"]
[SourceTitle "playchess.com"]
[Source "ChessBase"]
[SourceQuality "1"]
[WhiteTeam "Germany"]
[BlackTeam "Denmark"]
[WhiteTeamCountry "GER"]
[BlackTeamCountry "DEN"]
[TimeControl "40/5400+30:1800+30"]

1. d4 {[%emt 0:00:00]} Nf6 {[%emt 0:00:09]} 2. c4 {[%emt 0:00:00]} g6 {[%emt 0:00:11]} 3. Nc3 {[%emt 0:00:00]} Bg7 {[%emt 0:00:08]} 4. e4 {[%emt 0:00:00]} d6 {[%emt 0:00:14]} 5. Be2 {[%emt 0:00:00]} O-O {[%emt 0:00:21]} 6. Bg5 {[%emt 0:00:05]} h6 {[%emt 0:01:19]} 7. Be3 {[%emt 0:00:06]} c5 {[%emt 0:00:50]} 8. d5 {[%emt 0:00:13]} a6 {[%emt 0:02:06]} 9. a4 {[%emt 0:05:18]} Qa5 {[%emt 0:03:04] E74: King's Indian: Averbakh Variation: 6...c5} (9... e6 10. Nf3 exd5 11. cxd5 Bg4 12. Nd2 Bxe2 13. Qxe2 Re8 14. O-O Nbd7 15. h3 Nh5 16. a5 Rb8 17. Ra4 {½-½ (73) Topalov,V (2777)-Radjabov,T (2744) Bilbao 2008}) 10. Bd2 {[%emt 0:01:08] LiveBook: 14 Games} Qc7 {[%emt 0:03:27]} 11. Nf3 {[%emt 0:01:54]} e6 {[%emt 0:06:27]} 12. O-O {[%emt 0:01:15]} exd5 {[%emt 0:05:37]} 13. exd5 {[%emt 0:06:00]} Bg4 {[%emt 0:08:01]} 14. h3 {[%emt 0:04:28]} Bxf3 {[%emt 0:00:49]} 15. Bxf3 {[%emt 0:00:02]} Nbd7 {[%emt 0:00:23]} 16. Qc2 {[%emt 0:02:25]} Rfe8 $146 {[%emt 0:07:51]} ({Find the theoretical novelty and annotate with similar games:} 16... Rae8 17. Rae1 Rxe1 18. Rxe1 {½-½ (78) Lazarev,V (2497)-Marholev,D (2418) Lyon 2006}) 17. Rfe1 {[%emt 0:08:18]} Rxe1+ {[%emt 0:02:18]} 18. Rxe1 {[%emt 0:00:11]} Re8 {[%emt 0:00:53]} 19. Rxe8+ {[%emt 0:04:11]} Nxe8 {[%emt 0:00:02]} 20. Ne4 {[%emt 0:02:30]} Ne5 {[%emt 0:08:27]} 21. Be2 {[%emt 0:01:33]} f5 {[%emt 0:07:23]} 22. Nc3 {[%emt 0:02:15]} Qe7 {[%emt 0:07:15]} 23. Qb3 {[%emt 0:08:59]} Qc7 {[%emt 0:04:48]} 24. a5 {[%emt 0:01:15]} Nf6 {[%emt 0:02:53]} 25. Na4 {[%emt 0:05:06]} Ne4 $11 {[%emt 0:03:09]} 26. Be1 {[%emt 0:00:24]} Kf7 {[%emt 0:06:05]} 27. Kf1 {[%emt 0:08:45]} Nd7 {[%emt 0:06:51]} 28. Qe3 {[%emt 0:06:56]} Nf8 {[%emt 0:03:02]} 29. g4 {[%emt 0:03:58]} Kg8 {[%emt 0:04:33]} 30. gxf5 {[%emt 0:00:42]} gxf5 {[%emt 0:00:18]} 31. f3 {[%emt 0:01:43]} Ng5 {[%emt 0:00:57]} 32. h4 {[%emt 0:01:51]} Bd4 {[%emt 0:00:29]} 33. Qf4 {[%emt 0:02:28]} Be5 {[%emt 0:00:15]} 34. Qxf5 {[%emt 0:00:26]} Ngh7 {[%emt 0:01:47]} 35. b3 {[%emt 0:05:06]} Qg7 {[%emt 0:00:36]} 36. Nb6 {[%emt 0:00:32]} Qf7 {[%emt 0:03:02]} 37. Bd3 {[%emt 0:01:09]} Nf6 {[%emt 0:00:46]} 38. Bf2 {[%emt 0:02:26]} N8d7 {[%emt 0:02:08]} 39. Nxd7 {[%emt 0:05:58]} Nxd7 {[%emt 0:00:09]} 40. Qxf7+ {[%emt 0:00:00]} Kxf7 {[%emt 0:00:02]} 41. Bf5 {[%emt 0:04:16]} Ke7 {[%emt 0:00:36]} 42. h5 {[%emt 0:03:05]} Kd8 {[%emt 0:11:48]} 43. Bxd7 {[%emt 0:02:45]} Kxd7 {[%emt 0:00:02]} 44. Be3 {[%emt 0:00:21]} Bg7 {[%emt 0:00:48]} 45. Bf4 {[%emt 0:06:54]} Ke7 {[%emt 0:02:34]} 46. Ke2 {[%emt 0:00:32]} 1-0

[Event "ESTCC U65 2018"]
[Site "Walbrzych"]
[Date "2018.04.18"]
[Round "5"]
[White "Hurme, Harri"]
[Black "Scrimgour, Alan"]
[Result "1-0"]
[ECO "E32"]
[WhiteElo "2229"]
[BlackElo "2083"]
[Annotator "NA"]
[PlyCount "65"]
[EventDate "2018.??.??"]
[EventCountry "POL"]
[SourceTitle "playchess.com"]
[Source "ChessBase"]
[SourceQuality "1"]
[WhiteTeam "Finland"]
[BlackTeam "Scotland"]
[WhiteTeamCountry "FIN"]
[BlackTeamCountry "SCO"]
[TimeControl "40/5400+30:1800+30"]

1. d4 {[%emt 0:00:00]} Nf6 {[%emt 0:00:07]} 2. c4 {[%emt 0:00:00]} e6 {[%emt 0:00:04]} 3. Nc3 {[%emt 0:00:10]} Bb4 {[%emt 0:00:06]} 4. Qc2 {[%emt 0:00:11]} O-O {[%emt 0:01:02]} 5. Nf3 {[%emt 0:00:11]} b6 {[%emt 0:03:21]} 6. e4 {[%emt 0:00:12]} d5 {[%emt 0:02:11]} 7. e5 {[%emt 0:00:35]} Ne4 {[%emt 0:01:03]} 8. Bd3 {[%emt 0:00:17]} Bb7 {[%emt 0:03:34]} 9. O-O {[%emt 0:00:58]} Bxc3 {[%emt 0:10:36]} 10. bxc3 {[%emt 0:00:17] LiveBook: 35 Games} f5 {[%emt 0:04:44] E32: Nimzo-Indian: Classical (4 Qc2): 4...0-0} (10... c5 11. cxd5 exd5 12. Nd2 cxd4 13. Nxe4 dxe4 14. Bxe4 Nc6 15. Bxh7+ Kh8 16. Be4 Qd7 17. Qd1 Kg8 18. cxd4 Rad8 19. Qh5 g6 {1-0 (49) Narciso Dublan,M (2466)-Garcia Ramos,D (2321) Barcelona 2018}) 11. exf6 {[%emt 0:02:17]} gxf6 {[%emt 0:02:19]} 12. cxd5 {[%emt 0:02:48]} exd5 {[%emt 0:02:05]} 13. Re1 $146 {[%emt 0:06:51]} ({Predecessor:} 13. c4 Qd7 14. Re1 Nd6 15. Bh6 Rf7 {½-½ (24) Wunnink,M (2253)-Gulbas,C (2364) Belgium 2015}) 13... Nd7 {[%emt 0:07:42]} 14. Nd2 {[%emt 0:02:13]} f5 {[%emt 0:06:13]} 15. f3 {[%emt 0:06:49]} Qh4 {[%emt 0:07:56]} 16. Re2 {[%emt 0:08:56]} Nd6 {[%emt 0:05:25]} 17. Ba3 {[%emt 0:03:46]} c5 {[%emt 0:02:27]} 18. Rae1 $18 {[%emt 0:03:49]} Rae8 {[%emt 0:05:06]} 19. Rxe8 {[%emt 0:01:18]} Nxe8 {[%emt 0:00:13]} 20. g3 {[%emt 0:01:13]} Qh5 {[%emt 0:08:42]} 21. Qa4 {[%emt 0:02:35]} Nef6 {[%emt 0:04:11]} 22. Qxa7 {[%emt 0:01:39]} Re8 {[%emt 0:05:04]} 23. Rxe8+ {[%emt 0:02:26]} Qxe8 {[%emt 0:00:06]} 24. Kf2 {[%emt 0:02:01]} f4 {[%emt 0:02:10]} 25. Nf1 {[%emt 0:01:39]} c4 {[%emt 0:06:35]} 26. Bf5 {[%emt 0:04:13]} Bc6 {[%emt 0:00:33]} 27. Bc1 {[%emt 0:01:52]} fxg3+ {[%emt 0:01:03]} 28. hxg3 {[%emt 0:00:29]} Qh5 {[%emt 0:04:28]} 29. Be6+ {[%emt 0:01:59]} Kg7 {[%emt 0:00:16]} 30. Bf4 {[%emt 0:00:44]} Ne4+ {[%emt 0:03:37]} 31. fxe4 {[%emt 0:00:55]} dxe4 {[%emt 0:00:21]} 32. Bxd7 {[%emt 0:04:33]} e3+ {[%emt 0:00:52]} 33. Ke1 {[%emt 0:01:35]} 1-0

[Event "ESTCC U65 2018"]
[Site "Walbrzych"]
[Date "2018.04.18"]
[Round "5"]
[White "Baumbach, Friedrich"]
[Black "Heikkila, Raine"]
[Result "1-0"]
[ECO "D35"]
[WhiteElo "2172"]
[BlackElo "1705"]
[Annotator "NA"]
[PlyCount "155"]
[EventDate "2018.??.??"]
[EventCountry "POL"]
[SourceTitle "playchess.com"]
[Source "ChessBase"]
[SourceQuality "1"]
[WhiteTeam "Germany"]
[BlackTeam "Finland"]
[WhiteTeamCountry "GER"]
[BlackTeamCountry "FIN"]
[TimeControl "40/5400+30:1800+30"]

1. d4 {[%emt 0:00:30]} d5 {[%emt 0:00:59]} 2. c4 {[%emt 0:00:15]} e6 {[%emt 0:00:11]} 3. Nc3 {[%emt 0:00:08]} Nf6 {[%emt 0:00:21]} 4. cxd5 {[%emt 0:00:12]} exd5 {[%emt 0:00:17]} 5. Bg5 {[%emt 0:00:12]} Be7 {[%emt 0:00:25]} 6. e3 {[%emt 0:00:09]} a6 {[%emt 0:00:13] D35: Queen's Gambit Declined: Exchange Variation} (6... c6 7. Qc2 Nbd7 8. Nf3 h6 9. Bf4 Nh5 10. O-O-O Nxf4 11. exf4 g5 12. Bd3 gxf4 13. Rhe1 Kf8 14. Bf5 Bb4 15. a3 Bxc3 16. Qxc3 Nb6 17. g4 Bxf5 {1-0 (29) Rapport,R (2692)-Hammer,J (2629) Palma de Mallorca 2017}) 7. Bd3 {[%emt 0:00:18]} h6 {[%emt 0:00:25]} 8. Bh4 Nc6 {[%emt 0:00:39]} 9. Nf3 {[%emt 0:00:30]} Bg4 {[%emt 0:00:27]} 10. h3 $146 {[%emt 0:01:13]} ({Predecessor:} 10. Be2 Qd7 11. Bxf6 Bxf6 12. Qb3 O-O-O 13. Na4 Na5 14. Qb4 Nc6 {1-0 (29) Drayton,D (1633)-Adeniji,A (1723) Port of Spain 2015}) 10... Be6 {[%emt 0:00:22]} 11. O-O {[%emt 0:00:53]} Nh7 {[%emt 0:00:17]} 12. Bg3 {[%emt 0:00:59]} Qd7 {[%emt 0:00:12]} 13. Rc1 {[%emt 0:03:06]} Ng5 {[%emt 0:00:26]} 14. Ne5 {[%emt 0:06:40]} Nxe5 {[%emt 0:00:24]} 15. dxe5 {[%emt 0:01:03]} c5 {[%emt 0:00:59]} 16. f4 {[%emt 0:00:49]} c4 {[%emt 0:00:53]} 17. Bc2 {[%emt 0:10:15]} Nxh3+ 18. gxh3 Bxh3 {[%emt 0:02:12]} 19. Rf2 {[%emt 0:01:10]} Bg4 {[%emt 0:00:27]} 20. Qxd5 {[%emt 0:01:16]} Be6 {[%emt 0:02:46]} 21. Qxd7+ {[%emt 0:00:23]} Bxd7 {[%emt 0:00:21]} 22. Nd5 {[%emt 0:00:43]} Bd8 {[%emt 0:02:15]} 23. Be4 {[%emt 0:00:48]} Rc8 {[%emt 0:00:44]} 24. Rd2 {[%emt 0:01:35]} b5 {[%emt 0:02:15]} 25. Kf2 {[%emt 0:01:55]} h5 {[%emt 0:00:28]} 26. f5 {[%emt 0:01:09]} Ba5 {[%emt 0:03:14]} 27. Rdc2 {[%emt 0:03:01]} Bc6 {[%emt 0:02:07]} 28. Nc3 {[%emt 0:03:08]} Bxc3 {[%emt 0:01:20]} 29. Bxc6+ {[%emt 0:03:35]} Rxc6 {[%emt 0:00:10]} 30. Rxc3 {[%emt 0:00:44]} g5 {[%emt 0:00:24]} 31. Kf3 {[%emt 0:03:38]} g4+ $18 {[%emt 0:00:49]} 32. Kf4 {[%emt 0:00:33]} h4 {[%emt 0:00:24]} 33. Rh1 {[%emt 0:21:29]} Rch6 {[%emt 0:00:17]} 34. Be1 {[%emt 0:00:27]} g3 {[%emt 0:00:16]} 35. Bxg3 {[%emt 0:07:10]} hxg3 {[%emt 0:00:22]} 36. Rxh6 {[%emt 0:00:03]} Rxh6 {[%emt 0:00:25]} 37. Kxg3 {[%emt 0:00:02]} Rh1 {[%emt 0:00:46]} 38. b3 {[%emt 0:00:55]} cxb3 {[%emt 0:00:42]} 39. Rxb3 {[%emt 0:00:41]} Rc1 {[%emt 0:00:45]} 40. a4 {[%emt 0:03:24]} Rc5 {[%emt 0:31:01]} 41. axb5 {[%emt 0:01:10]} axb5 {[%emt 0:00:00]} 42. Kf4 {[%emt 0:00:24]} Kd7 {[%emt 0:00:00]} 43. Rd3+ {[%emt 0:02:57]} Ke8 {[%emt 0:00:00]} 44. Ra3 {[%emt 0:02:54]} Rc8 {[%emt 0:00:00]} 45. Rb3 {[%emt 0:27:17]} Rb8 {[%emt 0:00:00]} 46. Rb4 {[%emt 0:00:01]} Ke7 {[%emt 0:00:00]} 47. Ke4 {[%emt 0:00:26]} f6 {[%emt 0:00:00]} 48. e6 {[%emt 0:04:47]} Kd6 {[%emt 0:00:00]} 49. Kd4 {[%emt 0:00:22]} Kc6 {[%emt 0:00:00]} 50. Rb1 {[%emt 0:04:58]} Rd8+ {[%emt 0:00:00]} 51. Kc3 {[%emt 0:02:23]} Kc5 {[%emt 0:00:00]} 52. Rb4 {[%emt 0:03:32]} Rb8 {[%emt 0:00:00]} 53. Rh4 {[%emt 0:01:36]} Ra8 {[%emt 0:00:00]} 54. Kb3 {[%emt 0:00:45]} Rd8 {[%emt 0:00:00]} 55. Rd4 {[%emt 0:01:11]} Ra8 {[%emt 0:00:00]} 56. Rd7 {[%emt 0:00:25]} b4 {[%emt 0:00:00]} 57. Rd3 {[%emt 0:04:32]} Ra7 {[%emt 0:00:00]} 58. e4 {[%emt 0:00:09]} Ra3+ {[%emt 0:01:03]} 59. Kc2 {[%emt 0:00:01]} Ra2+ {[%emt 0:00:24]} 60. Kb1 {[%emt 0:00:21]} Ra8 {[%emt 0:01:15]} 61. e5 {[%emt 0:02:37]} Kc4 {[%emt 0:04:37]} 62. Rd1 {[%emt 0:01:52]} b3 {[%emt 0:05:32]} 63. exf6 {[%emt 0:00:24]} Kc3 {[%emt 0:00:29]} 64. Rc1+ {[%emt 0:00:45]} Kd2 {[%emt 0:00:12]} 65. Rc7 {[%emt 0:00:46]} Ra5 {[%emt 0:02:35]} 66. e7 Rxf5 {[%emt 0:00:29]} 67. e8=Q {[%emt 0:00:35]} Rf1+ 68. Kb2 Rxf6 {[%emt 0:00:49]} 69. Qd8+ {[%emt 0:00:11]} Ke3 {[%emt 0:00:29]} 70. Qxf6 {[%emt 0:00:03]} Ke4 {[%emt 0:00:21]} 71. Re7+ {[%emt 0:00:07]} Kd5 {[%emt 0:00:13]} 72. Qf1 {[%emt 0:00:11]} Kd6 {[%emt 0:00:17]} 73. Re3 {[%emt 0:00:02]} Kc5 {[%emt 0:00:26]} 74. Qd1 {[%emt 0:00:08]} Kb5 {[%emt 0:00:21]} 75. Rc3 {[%emt 0:00:05]} Ka4 {[%emt 0:00:23]} 76. Qxb3+ {[%emt 0:00:04]} Ka5 {[%emt 0:00:10]} 77. Rc8 {[%emt 0:00:10]} Ka6 {[%emt 0:00:03]} 78. Ra8# {[%emt 0:00:12]} 1-0

[Event "ESTCC U65 2018"]
[Site "Walbrzych"]
[Date "2018.04.18"]
[Round "5"]
[White "Sorensen, Bent"]
[Black "Vucenovic, Dragomir"]
[Result "1-0"]
[ECO "A07"]
[WhiteElo "2158"]
[BlackElo "2248"]
[Annotator "NA"]
[PlyCount "73"]
[EventDate "2018.??.??"]
[EventCountry "POL"]
[SourceTitle "playchess.com"]
[Source "ChessBase"]
[SourceQuality "1"]
[WhiteTeam "Denmark"]
[BlackTeam "Switzerland"]
[WhiteTeamCountry "DEN"]
[BlackTeamCountry "SUI"]
[TimeControl "40/5400+30:1800+30"]

1. Nf3 {[%emt 0:00:00]} d5 {[%emt 0:00:14]} 2. g3 {[%emt 0:00:00]} Nf6 {[%emt 0:00:19]} 3. Bg2 {[%emt 0:00:00]} c6 {[%emt 0:00:19]} 4. O-O {[%emt 0:00:11]} Bg4 {[%emt 0:00:33] LiveBook: 3768 Games} 5. b3 {[%emt 0:00:02]} e6 {[%emt 0:00:27]} 6. Bb2 {[%emt 0:00:15]} Nbd7 {[%emt 0:00:35]} 7. d3 {[%emt 0:00:19]} Be7 {[%emt 0:04:23]} 8. Nbd2 {[%emt 0:00:22] A07: Réti Opening: New York and Capablanca Systems} Qc7 {[%emt 0:06:35]} (8... O-O 9. h3 Bh5 10. e4 a5 11. a3 Ne8 12. Qe2 Nc7 13. Kh1 Re8 14. e5 c5 15. g4 Bg6 16. Nh2 f5 17. f4 a4 18. c4 Nb6 19. cxd5 Ncxd5 {0-1 (90) Onischuk,V (2594)-Andriasian,Z (2611) Dubai 2014}) 9. e4 {[%emt 0:01:43]} dxe4 {[%emt 0:01:58]} 10. dxe4 {[%emt 0:01:02]} Bxf3 {[%emt 0:02:25]} 11. Qxf3 {[%emt 0:02:39]} e5 {[%emt 0:09:27]} 12. Nc4 {[%emt 0:08:05]} b5 {[%emt 0:02:03]} 13. Ne3 {[%emt 0:01:09]} O-O $146 {[%emt 0:01:37]} ({Predecessor:} 13... g6 14. a4 b4 15. Nc4 O-O {1-0 (36) Thiede,L (2446)-Tabernig,B (2383) Austria 2014}) 14. Rac1 {[%emt 0:18:36]} Rfe8 {[%emt 0:01:17]} 15. c4 {[%emt 0:01:56]} b4 {[%emt 0:01:28]} 16. Rfd1 {[%emt 0:04:21]} Rad8 {[%emt 0:09:01]} 17. Nf5 {[%emt 0:03:55]} Nc5 {[%emt 0:09:58]} 18. Qe3 {[%emt 0:02:02]} Bf8 {[%emt 0:02:02]} (18... g6 $11 {remains equal.}) 19. Nxg7 {[%emt 0:04:40]} Kxg7 {[%emt 0:05:41]} 20. Qg5+ {[%emt 0:00:18]} Kh8 {[%emt 0:00:23]} 21. Qxf6+ {[%emt 0:00:09]} Bg7 {[%emt 0:00:20]} 22. Qf3 {[%emt 0:03:21]} Ne6 {[%emt 0:01:24]} 23. Bh3 {[%emt 0:09:49]} Nd4 {[%emt 0:02:33]} 24. Bxd4 {[%emt 0:01:06]} Rxd4 {[%emt 0:03:16]} 25. Rxd4 {[%emt 0:00:27]} exd4 $18 {[%emt 0:00:02]} 26. Rd1 {[%emt 0:02:37]} c5 {[%emt 0:00:27]} 27. Bf5 {[%emt 0:00:29]} Rd8 {[%emt 0:03:32]} 28. Qh5 {[%emt 0:01:05]} h6 {[%emt 0:00:09]} 29. Rd3 {[%emt 0:00:33]} Qe7 {[%emt 0:00:55]} 30. f4 {[%emt 0:04:06]} Rd6 {[%emt 0:07:11]} 31. e5 {[%emt 0:02:11]} Ra6 {[%emt 0:00:25]} 32. Rd2 {[%emt 0:03:21]} Kg8 {[%emt 0:00:11]} 33. Re2 {[%emt 0:03:27]} Rb6 {[%emt 0:03:49]} 34. Bd3 {[%emt 0:01:38]} Rb8 {[%emt 0:07:49]} 35. Qf5 {[%emt 0:04:00]} f6 {[%emt 0:01:11]} 36. exf6 {[%emt 0:00:41]} Qxf6 {[%emt 0:00:04]} 37. Qxc5 {[%emt 0:00:25]} 1-0